bitfinex/quotes_BTCUSD_20251209
["timestamp","ask_amount","ask_price","bid_price","bid_amount"]
[1765258612138,0.1434,90209.0,90208.0,0.323]
[1765258612380,0.1434,90209.0,90208.0,0.441351]
[1765258612537,0.1444,90209.0,90208.0,0.441351]
[1765258612748,0.37719287,90209.0,90205.0,0.04054913]
[1765258612948,0.05541,90207.0,90205.0,0.04054913]
[1765258613172,0.05541,90207.0,90206.0,0.11099]
[1765258613592,0.27712228,90207.0,90206.0,0.11099]
[1765258613926,0.27712228,90207.0,90205.0,0.02946328]
[1765258613927,0.05541,90207.0,90205.0,0.169948]
[1765258614268,0.05541,90207.0,90205.0,0.19941128]
[1765258614488,0.05541,90207.0,90206.0,0.167688]
[1765258614670,0.08799,90206.0,90205.0,0.02946328]
[1765258614872,0.08799,90206.0,90205.0,0.18462428]
[1765258615209,0.01108549,90208.0,90207.0,0.490758]
[1765258615740,0.06649549,90208.0,90207.0,0.490758]
[1765258616053,0.06649549,90208.0,90207.0,0.463836]
[1765258616320,0.15571055,90208.0,90207.0,0.49339201]
[1765258616525,0.14462506,90208.0,90207.0,0.49339201]
[1765258616885,0.14662506,90208.0,90207.0,0.49339201]
[1765258617310,0.14662506,90208.0,90207.0,0.463836]
[1765258617692,0.14762506,90208.0,90207.0,0.463836]
[1765258617899,0.14762506,90208.0,90207.0,0.49340993]
[1765258618325,0.14762506,90208.0,90207.0,0.463836]
[1765258618985,0.00422506,90208.0,90207.0,0.463836]
[1765258621420,0.00422506,90208.0,90207.0,0.50314491]
[1765258622290,0.00422506,90208.0,90207.0,0.463836]
[1765258622805,0.00122506,90208.0,90207.0,0.463836]
[1765258625105,0.00122506,90208.0,90207.0,0.52314916]
[1765258625246,0.00122506,90208.0,90207.0,0.463836]
[1765258626083,0.00122506,90208.0,90207.0,0.52314916]
[1765258627316,0.00122506,90208.0,90207.0,0.463836]
[1765258629692,0.00122506,90208.0,90207.0,0.52314916]
[1765258629894,0.00122506,90208.0,90207.0,0.463836]
[1765258631326,0.00122506,90208.0,90207.0,0.52314916]
[1765258632436,0.13891506,90208.0,90207.0,0.52314916]
[1765258633480,0.13891506,90208.0,90207.0,0.463836]
[1765258634294,0.13891506,90208.0,90206.0,0.45935225]
[1765258634498,0.22170981,90209.0,90206.0,0.43958836]
[1765258634499,0.36082228,90207.0,90206.0,0.43958836]
[1765258634646,0.36082228,90207.0,90206.0,0.4]
[1765258636283,0.36082228,90207.0,90206.0,0.43958836]
[1765258636284,0.36482228,90207.0,90206.0,0.43958836]
[1765258637396,0.36482228,90207.0,90206.0,0.4]
[1765258639626,0.36601747,90207.0,90206.0,0.4]
[1765258643831,0.00519519,90207.0,90206.0,0.62171474]
[1765258644125,0.00519519,90207.0,90206.0,0.4]
[1765258644326,0.00519519,90207.0,90206.0,0.723]
[1765258644530,0.00519519,90207.0,90206.0,0.94471474]
[1765258644826,0.00119519,90207.0,90206.0,0.94471474]
[1765258644985,0.00119519,90207.0,90206.0,0.94771474]
[1765258645195,0.00119519,90207.0,90206.0,0.94571474]
[1765258645399,0.00119519,90207.0,90206.0,0.94471474]
[1765258645600,0.00119519,90207.0,90206.0,0.94571474]
[1765258645834,0.00119519,90207.0,90206.0,0.94671474]
[1765258657013,0.00119519,90207.0,90206.0,0.725]
[1765258657233,0.14030519,90207.0,90206.0,0.725]
[1765258658287,0.14030519,90207.0,90206.0,0.724]
[1765258659114,0.14030519,90207.0,90206.0,0.723]
[1765258659573,0.14030519,90207.0,90206.0,0.4]
[1765258660103,0.14130519,90207.0,90206.0,0.4]
[1765258660450,0.14230519,90207.0,90206.0,0.4]
[1765258663602,0.00319519,90207.0,90206.0,0.4]
[1765258663823,0.00319519,90207.0,90206.0,1.92122687]
[1765258663963,0.05153364,90223.0,90217.0,0.01108438]
[1765258663964,0.04045,90223.0,90217.0,0.01108438]
[1765258664171,0.04045,90223.0,90219.0,0.323]
[1765258664374,0.01108327,90226.0,90221.0,0.01108389]
[1765258664766,0.01108266,90231.0,90222.0,0.22167542]
[1765258664922,0.01108291,90229.0,90222.0,0.24367142]
[1765258665123,0.01108291,90229.0,90223.0,0.05946435]
[1765258665320,0.01108291,90229.0,90222.0,0.30313577]
[1765258665487,0.01108291,90229.0,90223.0,0.06676347]
[1765258665687,0.01108315,90227.0,90223.0,0.06676347]
[1765258665891,0.01108303,90228.0,90223.0,0.06676347]
[1765258666091,0.01108278,90230.0,90223.0,0.06676347]
[1765258666298,0.01108291,90229.0,90223.0,0.06776347]
[1765258666500,0.05153254,90232.0,90223.0,0.06776347]
[1765258666936,0.01108291,90229.0,90223.0,0.06876347]
[1765258667152,0.04045,90232.0,90223.0,0.39176347]
[1765258667339,0.04045,90232.0,90223.0,0.41537234]
[1765258667942,0.05153254,90232.0,90223.0,0.41537234]
[1765258668157,0.05153254,90232.0,90223.0,0.39337634]
[1765258668362,0.04045,90232.0,90223.0,0.39337634]
[1765258669064,0.16396889,90232.0,90223.0,0.39337634]
[1765258669668,0.00089385,90224.0,90223.0,0.39337634]
[1765258670167,0.13865385,90224.0,90223.0,0.06876347]
[1765258670945,0.13865385,90224.0,90223.0,0.04160062]
[1765258670946,0.02770881,90224.0,90223.0,0.04160062]
[1765258671279,0.01108327,90226.0,90223.0,0.002]
[1765258671482,0.22166805,90225.0,90223.0,0.002]
[1765258671684,0.01119905,90226.0,90223.0,0.002]
[1765258671889,0.00011578,90226.0,90223.0,0.01208364]
[1765258672204,0.00011578,90226.0,90223.0,0.23275603]
[1765258672795,0.00011578,90226.0,90223.0,0.01108364]
[1765258673195,0.01119905,90226.0,90223.0,0.01108364]
[1765258673402,0.01119905,90226.0,90222.0,0.01108377]
[1765258673711,0.09592905,90226.0,90222.0,0.05068439]
[1765258674111,0.22167542,90222.0,90221.0,0.03960062]
[1765258674286,0.04041,90223.0,90221.0,0.03960062]
[1765258674490,0.12059,90222.0,90221.0,0.03960062]
[1765258676344,0.34226542,90222.0,90221.0,0.03960062]
[1765258677565,0.34226542,90222.0,90218.0,0.323]
[1765258677566,0.22168033,90220.0,90217.0,0.10636409]
[1765258677714,0.22168525,90218.0,90217.0,0.45635047]
[1765258677916,0.25802525,90218.0,90217.0,0.45635047]
[1765258678118,0.34227525,90218.0,90217.0,0.06676347]
[1765258679791,0.22170736,90209.0,90207.0,0.36260062]
[1765258680004,0.22171228,90207.0,90205.0,0.03960062]
[1765258680243,0.27474228,90207.0,90204.0,0.03960062]
[1765258680455,0.35886228,90207.0,90204.0,0.03960062]
[1765258680753,0.01108512,90211.0,90204.0,0.03960062]
[1765258680754,0.05149364,90223.0,90217.0,0.323]
[1765258680961,0.22168525,90218.0,90217.0,0.323]
[1765258681163,0.26282525,90218.0,90217.0,0.36260886]
[1765258681487,0.34712525,90218.0,90217.0,0.36260886]
[1765258681840,0.34712525,90218.0,90213.0,0.07784834]
[1765258681841,0.34712525,90218.0,90216.0,0.03960886]
[1765258682041,0.30328508,90214.0,90213.0,0.10637233]
[1765258682446,0.38082508,90214.0,90213.0,0.10637233]
[1765258682859,0.38082508,90214.0,90213.0,0.06676347]
[1765258683241,0.38082508,90214.0,90213.0,0.10637233]
[1765258683462,0.38082508,90214.0,90213.0,0.06676347]
[1765258683689,0.38182508,90214.0,90213.0,0.06676347]
[1765258684194,0.38182508,90214.0,90213.0,0.10637233]
[1765258684374,0.38182508,90214.0,90213.0,0.06676347]
[1765258684868,0.38082508,90214.0,90213.0,0.06676347]
[1765258685210,0.38282508,90214.0,90213.0,0.10637233]
[1765258685355,0.38282508,90214.0,90213.0,0.06676347]
[1765258689097,0.22170491,90210.0,90208.0,0.03960886]
[1765258689350,0.22170982,90208.0,90206.0,0.43960886]
[1765258689549,0.04635,90207.0,90206.0,0.76260886]
[1765258689751,0.12389,90207.0,90206.0,0.76260886]
[1765258690479,0.12389,90207.0,90206.0,0.4]
[1765258692589,0.12489,90207.0,90206.0,0.4]
[1765258692913,0.12589,90207.0,90206.0,0.4]
[1765258693114,0.34760228,90207.0,90206.0,0.4]
[1765258700375,0.34760228,90207.0,90206.0,0.43960886]
[1765258701245,0.34760228,90207.0,90206.0,0.4]
[1765258704522,0.34760228,90207.0,90206.0,0.43960886]
[1765258705106,0.12589,90207.0,90206.0,0.43960886]
[1765258705936,0.34760228,90207.0,90206.0,0.43960886]
[1765258706350,0.34760228,90207.0,90206.0,0.4]
[1765258713813,0.27006228,90207.0,90206.0,0.4]
[1765258714323,0.34836228,90207.0,90206.0,0.4]
[1765258715468,0.04023,90207.0,90206.0,0.4]
[1765258715652,0.002,90207.0,90206.0,0.4]
[1765258716456,0.002,90207.0,90206.0,0.43328375]
[1765258725006,0.002,90207.0,90206.0,0.88367375]
[1765258725201,0.002,90207.0,90206.0,0.80632375]
[1765258725578,0.002,90207.0,90206.0,0.75628375]
[1765258727328,0.13093,90207.0,90206.0,0.75628375]
[1765258727670,0.15864403,90207.0,90206.0,0.75628375]
[1765258728117,0.08094403,90207.0,90206.0,0.75628375]
[1765258728904,0.15864403,90207.0,90206.0,0.75628375]
[1765258730904,0.15864403,90207.0,90206.0,0.4]
[1765258731305,0.15864403,90207.0,90206.0,0.45956417]
[1765258732030,0.13093,90207.0,90206.0,0.45956417]
[1765258735175,0.13093,90207.0,90206.0,0.4]
[1765258735542,0.002,90207.0,90206.0,0.48269]
[1765258735760,0.002,90207.0,90206.0,0.80730287]
[1765258735942,0.002,90207.0,90206.0,0.91793762]
[1765258736357,0.002,90207.0,90206.0,0.84058762]
[1765258736890,0.001,90207.0,90206.0,0.84058762]
[1765258737500,0.0176,90211.0,90208.0,0.01108549]
[1765258737702,0.0176,90211.0,90210.0,0.34801144]
[1765258738060,0.0176,90211.0,90210.0,0.12630653]
[1765258738895,0.36786245,90211.0,90210.0,0.12630653]
[1765258739098,0.36786245,90211.0,90210.0,0.06676347]
[1765258739277,0.22171228,90207.0,90206.0,0.45954306]
[1765258739478,0.27294228,90207.0,90206.0,0.4]
[1765258739649,0.34928228,90207.0,90206.0,0.4]
[1765258742187,0.34928228,90207.0,90206.0,0.45954306]
[1765258743318,0.12857,90207.0,90206.0,0.45954306]
[1765258743619,0.12957,90207.0,90206.0,0.45954306]
[1765258743823,0.12857,90207.0,90206.0,0.45954306]
[1765258744042,0.12957,90207.0,90206.0,0.4]
[1765258744663,0.12857,90207.0,90206.0,0.4]
[1765258744872,0.153659,90207.0,90206.0,0.4]
[1765258745065,0.154659,90207.0,90206.0,0.4]
[1765258745275,0.154659,90207.0,90206.0,0.45954306]
[1765258745451,0.154659,90207.0,90206.0,0.4]
[1765258745648,0.12957,90207.0,90206.0,0.4]
[1765258748255,0.12957,90207.0,90206.0,0.43328663]
[1765258748459,0.15224257,90207.0,90206.0,0.43328663]
[1765258748879,0.12957,90207.0,90206.0,0.43328663]
[1765258749098,0.15278182,90207.0,90206.0,0.43328663]
[1765258749310,0.15278182,90207.0,90206.0,0.4]
[1765258749516,0.12957,90207.0,90206.0,0.43969706]
[1765258750395,0.12957,90207.0,90206.0,0.4]
[1765258750816,0.12957,90207.0,90206.0,0.43969706]
[1765258753165,0.15148236,90207.0,90206.0,0.43969706]
[1765258753583,0.12957,90207.0,90206.0,0.43969706]
[1765258753996,0.12957,90207.0,90206.0,0.4]
[1765258766800,0.12957,90207.0,90206.0,0.43968644]
[1765258767898,0.35128228,90207.0,90206.0,0.43968644]
[1765258768173,0.35128228,90207.0,90206.0,0.4]
[1765258768174,0.22371228,90207.0,90206.0,0.4]
[1765258768526,0.29620228,90207.0,90206.0,0.4]
[1765258769134,0.34524228,90207.0,90206.0,0.4]
[1765258778635,0.34524228,90207.0,90206.0,0.43971046]
[1765258779062,0.34524228,90207.0,90206.0,0.4]
[1765258779261,0.36715464,90207.0,90206.0,0.4]
[1765258780266,0.22172211,90203.0,90201.0,0.02979134]
[1765258780515,0.22846211,90203.0,90201.0,0.02979134]
[1765258780690,0.15974,90202.0,90201.0,0.02979134]
[1765258781261,0.15974,90202.0,90200.0,0.02979134]
[1765258781509,0.31181703,90201.0,90200.0,0.02979134]
[1765258781710,0.36085703,90201.0,90200.0,0.02979134]
[1765258783292,0.36085703,90201.0,90199.0,0.02979134]
[1765258783533,0.07234,90200.0,90199.0,0.02979134]
[1765258783771,0.1592,90200.0,90199.0,0.02979134]
[1765258785275,0.1592,90200.0,90194.0,0.03971046]
[1765258785276,0.22173194,90199.0,90197.0,0.02979134]
[1765258785478,0.22173686,90197.0,90196.0,0.02979134]
[1765258785908,0.29407686,90197.0,90196.0,0.02979134]
[1765258786115,0.38093686,90197.0,90196.0,0.02979134]
[1765258786632,0.38093686,90197.0,90196.0,0.03017744]
[1765258787155,0.40284922,90197.0,90196.0,0.03017744]
[1765258787382,0.40284922,90197.0,90196.0,0.0003861]
[1765258788137,0.38093686,90197.0,90196.0,0.0003861]
[1765258789267,0.40284922,90197.0,90196.0,0.0003861]
[1765258790093,0.38093686,90197.0,90196.0,0.0003861]
[1765258800404,0.01108647,90200.0,90196.0,0.0286961]
[1765258800614,0.01108647,90200.0,90198.0,0.02973715]
[1765258800811,0.01108635,90201.0,90198.0,0.02973715]
[1765258801013,0.01108635,90201.0,90199.0,0.02973715]
[1765258801217,0.08342635,90201.0,90200.0,0.02973715]
[1765258801661,0.13209635,90201.0,90200.0,0.02973715]
[1765258803286,0.2217344,90198.0,90197.0,0.03971046]
[1765258803503,0.13209635,90201.0,90198.0,0.01108672]
[1765258803635,0.01108635,90201.0,90198.0,0.01269959]
[1765258803831,0.0110861,90203.0,90200.0,0.02701]
[1765258804034,0.0110861,90203.0,90200.0,0.03809647]
[1765258804242,0.0110861,90203.0,90200.0,0.01108647]
[1765258805088,0.0110861,90203.0,90199.0,0.01108659]
[1765258805288,0.23281079,90202.0,90199.0,0.05079705]
[1765258805490,0.01108622,90202.0,90199.0,0.05079705]
[1765258806291,0.23281092,90202.0,90199.0,0.03971046]
[1765258806495,0.02656,90205.0,90199.0,0.27252835]
[1765258806695,0.0110861,90203.0,90200.0,0.04071045]
[1765258806913,0.0110861,90203.0,90201.0,0.03971046]
[1765258807127,0.03764585,90205.0,90200.0,0.05179692]
[1765258807279,0.2217125,90207.0,90200.0,0.05179692]
[1765258807280,0.01108475,90214.0,90211.0,0.01108512]
[1765258807487,0.01108475,90214.0,90213.0,0.06676347]
[1765258808818,0.01308475,90214.0,90213.0,0.06676347]
[1765258809263,0.01308475,90214.0,90213.0,0.09649426]
[1765258810227,0.01308475,90214.0,90213.0,0.06676347]
[1765258810937,0.002,90214.0,90213.0,0.06676347]
[1765258811354,0.002,90214.0,90213.0,0.61307387]
[1765258811767,0.002,90214.0,90213.0,0.64635629]
[1765258811982,0.12024,90214.0,90213.0,0.42465876]
[1765258812365,0.001,90214.0,90213.0,0.64635629]
[1765258812879,0.001,90214.0,90213.0,0.64835629]
[1765258813106,0.03547,90215.0,90214.0,0.323]
[1765258813889,0.03547,90215.0,90214.0,0.36257841]
[1765258814089,0.03547,90215.0,90214.0,0.36357841]
[1765258814270,0.03547,90215.0,90214.0,0.001]
[1765258814483,0.03547,90215.0,90214.0,0.03428242]
[1765258814891,0.03547,90215.0,90214.0,0.03528242]
[1765258815087,0.0110834,90225.0,90221.0,0.01108389]
[1765258815291,0.22166755,90226.0,90222.0,0.01108377]
[1765258815292,0.01108327,90226.0,90222.0,0.01108377]
[1765258815826,0.2216534,90231.0,90222.0,0.01108377]
[1765258815827,0.01132144,90232.0,90226.0,0.01108327]
[1765258816028,0.0002389,90232.0,90226.0,0.04074747]
[1765258816328,0.01108266,90231.0,90227.0,0.01108315]
[1765258816678,0.01108291,90229.0,90225.0,0.0110834]
[1765258816916,0.26577886,90226.0,90223.0,0.03327792]
[1765258817096,0.26577886,90226.0,90223.0,0.07402576]
[1765258817097,0.03303,90226.0,90223.0,0.07402576]
[1765258817296,0.00011578,90229.0,90228.0,0.22166068]
[1765258817678,0.00011578,90229.0,90228.0,0.33358355]
[1765258817893,0.00011578,90229.0,90228.0,0.36324775]
[1765258818099,0.00011578,90229.0,90228.0,0.36685848]
[1765258818303,0.00011578,90229.0,90228.0,0.39646971]
[1765258818500,0.00111578,90229.0,90228.0,0.32907971]
[1765258818699,0.00111578,90229.0,90228.0,0.28616]
[1765258818903,0.00011578,90229.0,90228.0,0.28616]
[1765258819103,0.00011578,90229.0,90228.0,0.25654848]
[1765258819280,0.00011578,90229.0,90228.0,0.28615091]
[1765258820206,0.00011578,90229.0,90228.0,0.25654848]
[1765258820412,0.00011578,90229.0,90228.0,0.32331195]
[1765258821026,0.00011578,90229.0,90228.0,0.35291438]
[1765258821228,0.00011578,90229.0,90228.0,0.32331195]
[1765258822713,0.00011578,90229.0,90228.0,0.75662195]
[1765258823258,0.00011578,90229.0,90228.0,2.75662195]
[1765258823616,0.00011578,90229.0,90228.0,1.03735795]
[1765258824055,0.00011578,90229.0,90228.0,0.96996795]
[1765258825121,0.00011578,90229.0,90228.0,0.88275095]
[1765258825518,0.00011578,90229.0,90228.0,0.79837795]
[1765258825742,0.00011578,90229.0,90228.0,0.64631195]
[1765258825951,0.00011578,90229.0,90228.0,0.84673395]
[1765258828810,0.00011578,90229.0,90228.0,0.62507327]
[1765258829531,0.03314578,90229.0,90228.0,0.62507327]
[1765258830293,0.09888578,90229.0,90228.0,0.6234604]
[1765258830518,0.09888578,90229.0,90221.0,0.07062695]
[1765258830519,0.23275402,90224.0,90221.0,0.02959058]
[1765258830737,0.29787542,90222.0,90220.0,0.03113758]
[1765258830943,0.04173,90221.0,90220.0,0.001547]
[1765258831150,0.10747,90221.0,90220.0,0.001547]
[1765258832873,0.10947,90221.0,90220.0,0.001547]
[1765258833403,0.11047,90221.0,90220.0,0.001547]
[1765258845230,0.13238236,90221.0,90220.0,0.001547]
[1765258846203,0.11047,90221.0,90220.0,0.001547]
[1765258846998,0.13238236,90221.0,90220.0,0.001547]
[1765258847403,0.11047,90221.0,90220.0,0.001547]
[1765258847795,0.13817973,90221.0,90220.0,0.001547]
[1765258853533,0.14817791,90221.0,90220.0,0.001547]
[1765258862200,0.2107009,90221.0,90220.0,0.001547]
[1765258862353,0.22172457,90202.0,90200.0,0.001]
[1765258862571,0.0922,90201.0,90200.0,0.001]
[1765258862736,0.15907,90201.0,90200.0,0.001]
[1765258863136,0.15907,90201.0,90200.0,0.401]
[1765258863793,0.15907,90201.0,90200.0,0.4013861]
[1765258865866,0.15907,90201.0,90200.0,0.4023861]
[1765258867221,0.04261585,90205.0,90200.0,0.40399897]
[1765258867424,0.0110861,90203.0,90201.0,0.05165656]
[1765258867606,0.0110861,90203.0,90201.0,0.05326943]
[1765258867805,0.22172457,90202.0,90201.0,0.03127343]
[1765258868205,0.22172457,90202.0,90201.0,0.00161287]
[1765258868732,0.22172457,90202.0,90201.0,0.00261287]
[1765258868974,0.22172457,90202.0,90201.0,0.00161287]
[1765258869320,0.0110861,90203.0,90201.0,0.00161287]
[1765258869525,0.04261585,90205.0,90201.0,0.00161287]
[1765258869899,0.04261585,90205.0,90204.0,0.02970053]
[1765258870312,0.01108585,90205.0,90204.0,0.02970053]
[1765258870689,0.01756,90207.0,90204.0,0.04239938]
[1765258870977,0.01756,90207.0,90204.0,0.2641185]
[1765258871293,0.02864561,90207.0,90205.0,0.02970053]
[1765258872235,0.01756,90207.0,90205.0,0.0313134]
[1765258872462,0.01756,90207.0,90206.0,0.02970053]
[1765258872674,0.01756,90207.0,90205.0,0.22332763]
[1765258872881,0.01756,90207.0,90205.0,0.00161287]
[1765258873101,0.32367474,90206.0,90205.0,0.00161287]
[1765258873257,0.10196,90206.0,90205.0,0.00161287]
[1765258873666,0.01756,90207.0,90205.0,0.00161287]
[1765258874081,0.01108536,90209.0,90206.0,0.01108573]
[1765258874333,0.001,90207.0,90206.0,0.01108573]
[1765258874533,0.001,90207.0,90206.0,0.0126986]
[1765258874682,0.001,90207.0,90206.0,0.00161287]
[1765258875101,0.32467228,90207.0,90206.0,0.03961146]
[1765258875302,0.22172211,90203.0,90202.0,0.03961146]
[1765258875499,0.22172211,90203.0,90201.0,0.10637493]
[1765258875736,0.10196,90202.0,90201.0,0.10637493]
[1765258876886,0.10196,90202.0,90201.0,0.06676347]
[1765258877093,0.10196,90202.0,90201.0,0.10639816]
[1765258878095,0.10196,90202.0,90201.0,0.10839816]
[1765258879628,0.11952,90202.0,90201.0,0.10839816]
[1765258879800,0.11952,90202.0,90201.0,0.06876347]
[1765258880000,0.11952,90202.0,90201.0,0.002]
[1765258880224,0.17459236,90202.0,90201.0,0.002]
[1765258880582,0.20230793,90202.0,90201.0,0.002]
[1765258880987,0.24363939,90201.0,90200.0,0.0003861]
[1765258881124,0.34559939,90201.0,90200.0,0.0003861]
[1765258882556,0.34659939,90201.0,90200.0,0.0003861]
[1765258883063,0.34759939,90201.0,90200.0,0.0003861]
[1765258883829,0.36967425,90201.0,90200.0,0.0003861]
[1765258884564,0.34759939,90201.0,90200.0,0.0003861]
[1765258895526,0.41012238,90201.0,90200.0,0.0003861]
[1765258896047,0.41012238,90201.0,90180.0,0.00099999]
[1765258896048,0.2217762,90181.0,90180.0,0.00099999]
[1765258896223,0.2217762,90181.0,90172.0,0.03963469]
[1765258896224,0.22179342,90174.0,90172.0,0.0297422]
[1765258896393,0.07202,90173.0,90172.0,0.02985806]
[1765258896599,0.13327,90173.0,90172.0,0.02985806]
[1765258897138,0.13327,90173.0,90172.0,0.00011586]
[1765258897487,0.13327,90173.0,90172.0,0.00511586]
[1765258897686,0.13327,90173.0,90172.0,0.00011586]
[1765258898094,0.13327,90173.0,90172.0,0.00211586]
[1765258898784,0.14326818,90173.0,90172.0,0.00211586]
[1765258899179,0.14326818,90173.0,90172.0,0.00311586]
[1765258899368,0.13327,90173.0,90172.0,0.00111586]
[1765258899772,0.13327,90173.0,90172.0,0.00311586]
[1765258899917,0.15518236,90173.0,90172.0,0.00311586]
[1765258900944,0.15518236,90173.0,90172.0,0.00111586]
[1765258901170,0.15518236,90173.0,90172.0,0.00011586]
[1765258901918,0.18290684,90173.0,90172.0,0.00011586]
[1765258904727,0.18390684,90173.0,90172.0,0.00011586]
[1765258912811,0.16199448,90173.0,90172.0,0.00011586]
[1765258913036,0.15618236,90173.0,90172.0,0.00011586]
[1765258913253,0.18386272,90173.0,90172.0,0.00011586]
[1765258913864,0.18225301,90173.0,90172.0,0.00011586]
[1765258916479,0.16034065,90173.0,90172.0,0.00011586]
[1765258921182,0.18225301,90173.0,90172.0,0.00011586]
[1765258922419,0.17033883,90173.0,90172.0,0.00011586]
[1765258923058,0.13427,90173.0,90172.0,0.00011586]
[1765258923271,0.16199448,90173.0,90172.0,0.00011586]
[1765258923415,0.17955448,90173.0,90172.0,0.00011586]
[1765258925332,0.15183,90173.0,90172.0,0.00011586]
[1765258926084,0.17955448,90173.0,90172.0,0.00011586]
[1765258926320,0.20146684,90173.0,90172.0,0.00011586]
[1765258938500,0.17955448,90173.0,90172.0,0.00011586]
[1765258939062,0.15183,90173.0,90172.0,0.00011586]
[1765258939203,0.13427,90173.0,90172.0,0.00011586]
[1765258939391,0.15183,90173.0,90172.0,0.00011586]
[1765258939815,0.17955448,90173.0,90172.0,0.00011586]
[1765258940327,0.15183,90173.0,90172.0,0.00011586]
[1765258944677,0.15183,90173.0,90172.0,0.02985806]
[1765258945734,0.15183,90173.0,90172.0,0.00011586]
[1765258948121,0.04987,90173.0,90172.0,0.00172873]
[1765258948300,0.01856,90173.0,90172.0,0.00172873]
[1765258948500,0.001,90173.0,90172.0,0.22352707]
[1765258948675,0.001,90173.0,90172.0,0.40656613]
[1765258948871,0.001,90173.0,90172.0,0.34488613]
[1765258949089,0.001,90173.0,90172.0,0.32289013]
[1765258949295,0.001,90173.0,90172.0,0.22352707]
[1765258949494,0.0110893,90177.0,90173.0,0.01108979]
[1765258949692,0.0110893,90177.0,90176.0,0.0397236]
[1765258949982,0.23287534,90177.0,90176.0,0.0397236]
[1765258950186,0.23287534,90177.0,90176.0,0.00161287]
[1765258950485,0.01108917,90178.0,90176.0,0.00161287]
[1765258950675,0.23287487,90178.0,90176.0,0.00161287]
[1765258951680,0.23287487,90178.0,90176.0,0.00761287]
[1765258952859,0.04008905,90179.0,90176.0,0.00761287]
[1765258953063,0.04008905,90179.0,90176.0,0.01870229]
[1765258953064,0.029,90179.0,90176.0,0.01870229]
[1765258953942,0.029,90179.0,90176.0,0.01470229]
[1765258954160,0.029,90179.0,90178.0,0.02976623]
[1765258954561,0.04823083,90181.0,90178.0,0.02976623]
[1765258954760,0.02772202,90181.0,90179.0,0.22177878]
[1765258954965,0.01108696,90196.0,90193.0,0.01108733]
[1765258955369,0.01108696,90196.0,90193.0,0.0408394]
[1765258955734,0.05878,90195.0,90193.0,0.02975207]
[1765258956248,0.05878,90195.0,90192.0,0.02975207]
[1765258957055,0.05878,90195.0,90193.0,0.22174669]
[1765258957224,0.05878,90195.0,90192.0,0.01108745]
[1765258957225,0.29160904,90195.0,90192.0,0.01108745]
[1765258957430,0.06986708,90195.0,90192.0,0.01108745]
[1765258957831,0.2926089,90195.0,90192.0,0.02975207]
[1765258958172,0.001,90195.0,90194.0,0.02012]
[1765258958359,0.001,90195.0,90193.0,0.22174669]
[1765258958795,0.05978,90195.0,90193.0,0.22174669]
[1765258959223,0.05978,90195.0,90192.0,0.33570032]
[1765258959782,0.05978,90195.0,90193.0,0.22174669]
[1765258959982,0.05878,90195.0,90193.0,0.22174669]
[1765258960180,0.05878,90195.0,90194.0,0.03067206]
[1765258960754,0.09992,90195.0,90194.0,0.02967206]
[1765258961295,0.09992,90195.0,90193.0,0.25541847]
[1765258961495,0.09992,90195.0,90193.0,0.25141847]
[1765258961894,0.09992,90195.0,90194.0,0.003]
[1765258962845,0.32166178,90195.0,90194.0,0.003]
[1765258963056,0.22174669,90193.0,90192.0,0.00161287]
[1765258963259,0.26161669,90193.0,90192.0,0.00161287]
[1765258963587,0.26161669,90193.0,90191.0,0.06676347]
[1765258963588,0.22175146,90192.0,90191.0,0.06676347]
[1765258964015,0.29101402,90193.0,90191.0,0.06676347]
[1765258964190,0.05818,90192.0,90191.0,0.06676347]
[1765258964818,0.029,90197.0,90194.0,0.01108721]
[1765258965028,0.08718,90197.0,90194.0,0.01108721]
[1765258965196,0.03987,90195.0,90194.0,0.01108721]
[1765258965615,0.09805,90195.0,90194.0,0.01108721]
[1765258966470,0.09805,90195.0,90192.0,0.36373184]
[1765258966587,0.03987,90195.0,90194.0,0.001]
[1765258966814,0.03987,90195.0,90194.0,0.003]
[1765258967017,0.03987,90195.0,90194.0,0.002]
[1765258967222,0.10913708,90195.0,90194.0,0.003]
[1765258971294,0.05095708,90195.0,90194.0,0.003]
[1765258971502,0.10913708,90195.0,90194.0,0.003]
[1765258974647,0.23282065,90199.0,90194.0,0.003]
[1765258974648,0.0110861,90203.0,90200.0,0.01108647]
[1765258974854,0.01108622,90202.0,90201.0,0.02238]
[1765258975911,0.01147232,90202.0,90201.0,0.02238]
[1765258976320,0.0003861,90202.0,90201.0,0.02238]
[1765258976532,0.0003861,90202.0,90201.0,0.24510703]
[1765258978037,0.0003861,90202.0,90201.0,0.3428499]
[1765258978274,0.0003861,90202.0,90201.0,0.70551932]
[1765258978498,0.0003861,90202.0,90201.0,0.72535404]
[1765258978702,0.0003861,90202.0,90201.0,0.6878459]
[1765258978906,0.0003861,90202.0,90201.0,0.6908459]
[1765258979576,0.0003861,90202.0,90201.0,2.6908459]
[1765258979797,0.0003861,90202.0,90201.0,2.6905359]
[1765258980105,0.0003861,90202.0,90201.0,2.6875359]
[1765258980579,0.0003861,90202.0,90201.0,2.6935359]
[1765258981202,0.0003861,90202.0,90201.0,2.6925359]
[1765258981329,0.0003861,90202.0,90201.0,2.6955359]
[1765258981776,0.0003861,90202.0,90201.0,0.73009787]
[1765258981978,0.0003861,90202.0,90201.0,0.01061287]
[1765258982295,0.0984361,90202.0,90201.0,0.01061287]
[1765258982855,0.0984361,90202.0,90201.0,0.00761287]
[1765258983055,0.0984361,90202.0,90201.0,0.01061287]
[1765258983277,0.0984361,90202.0,90201.0,0.00461287]
[1765258983487,0.32016067,90202.0,90201.0,0.00861287]
[1765258984480,0.32016067,90202.0,90201.0,0.00561287]
[1765258984698,0.32016067,90202.0,90201.0,0.00161287]
[1765258984948,0.22172949,90200.0,90199.0,0.0593826]
[1765258985087,0.26159949,90200.0,90199.0,0.0593826]
[1765258985284,0.31977949,90200.0,90199.0,0.0593826]
[1765258985519,0.09805,90200.0,90199.0,0.0593826]
[1765258985719,0.31977949,90200.0,90199.0,0.0593826]
[1765258986115,0.31977949,90200.0,90199.0,0.0633826]
[1765258986290,0.31977949,90200.0,90199.0,0.0613826]
[1765258986728,0.09805,90200.0,90199.0,0.0633826]
[1765258987257,0.09805,90200.0,90199.0,0.0613826]
[1765258987562,0.0003861,90202.0,90199.0,0.0983026]
[1765258987700,0.0003861,90202.0,90200.0,0.05369]
[1765258987906,0.0003861,90202.0,90199.0,0.1003026]
[1765258988327,0.01147232,90202.0,90199.0,0.0613826]
[1765258988552,0.01147232,90202.0,90199.0,0.0593826]
[1765258988754,0.01147232,90202.0,90199.0,0.0613826]